bitfinex-derivatives/quotes_ETHF0:USTF0_20250403
["timestamp","ask_amount","ask_price","bid_price","bid_amount"]
[1743676090026,2.57037,1802.2,1802.1,2.54186]
[1743676090227,1.84762,1802.3,1802.2,1.10984]
[1743676090431,1.84762,1802.3,1802.2,2.54184]
[1743676090735,3.30812,1802.3,1802.2,2.54184]
[1743676090929,0.7571,1802.5,1802.3,1.10978]
[1743676091124,0.7571,1802.5,1802.3,2.52718]
[1743676091125,1.10972,1802.4,1802.3,2.52718]
[1743676091324,2.2833,1802.5,1802.2,1.1098]
[1743676091627,2.63596,1802.4,1802.3,1.10978]
[1743676093035,1.86679,1802.5,1802.4,1.10972]
[1743676093236,1.10978,1802.4,1802.3,1.10974]
[1743676093428,1.10978,1802.4,1802.3,2.52714]
[1743676093828,2.63598,1802.4,1802.3,2.52714]
[1743676097128,1.10986,1802.3,1802.2,1.10981]
[1743676097333,1.10989,1802.2,1802.1,1.10985]
[1743676097533,3.26053,1802.3,1802.2,1.10984]
[1743676097933,1.10984,1802.2,1802.1,2.56265]
[1743676098237,2.50834,1802.2,1802.1,1.10985]
[1743676098739,1.10984,1802.2,1802.1,1.10985]
[1743676099042,2.50834,1802.2,1802.1,2.56265]
[1743676099942,2.50834,1802.2,1802.1,1.4528]
[1743676100541,1.1099,1802.1,1802.0,1.10992]
[1743676100735,1.10996,1802.0,1801.9,2.50949531]
[1743676101331,2.50935,1802.1,1802.0,1.10996]
[1743676101528,0.7522,1802.3,1802.1,1.10987]
[1743676101741,1.1099,1802.2,1802.1,1.10987]
[1743676102240,1.1099,1802.2,1802.1,1.84797]
[1743676102436,2.5092,1802.3,1802.2,1.10984]
[1743676102756,1.10975,1802.4,1802.3,1.10972]
[1743676103237,1.10978,1802.3,1802.2,3.21599]
[1743676103843,2.53728,1802.3,1802.2,2.50099]
[1743676104849,2.53728,1802.3,1802.2,1.3912]
[1743676105044,1.10984,1802.2,1802.1,1.84798]
[1743676105244,2.53734,1802.2,1802.1,1.84798]
[1743676105744,1.1099,1802.1,1802.0,1.5304]
[1743676105938,1.1099,1802.1,1801.9,5.04108531]
[1743676105939,1.10996,1802.0,1801.9,0.00831531]
[1743676106145,1.10996,1802.0,1801.9,1.11833531]
[1743676106542,2.58546,1802.0,1801.9,0.00831531]
[1743676107749,2.58546,1802.0,1801.9,1.11833531]
[1743676108446,3.923,1802.3,1801.9,0.00831531]
[1743676108645,1.4755,1802.3,1802.2,1.10984]
[1743676108845,2.58528,1802.3,1802.2,1.10984]
[1743676109452,2.58528,1802.3,1802.2,2.52234]
[1743676110053,1.4755,1802.3,1802.2,2.52234]
[1743676110349,1.10974,1802.4,1802.3,1.10978]
[1743676110650,2.56724,1802.4,1802.3,1.10978]
[1743676113148,5.77504,1802.4,1802.3,1.10978]
[1743676114153,1.10984,1802.3,1802.2,1.1098]
[1743676114350,2.54434,1802.3,1802.2,1.1098]
[1743676114852,1.10996,1802.1,1802.0,1.10993]
[1743676115258,1.10996,1802.0,1801.9,1.11828531]
[1743676115454,5.75716,1802.0,1801.9,1.11828531]
[1743676116050,5.75716,1802.0,1801.9,0.00831531]
[1743676116357,5.75716,1802.0,1801.5,2.77564]
[1743676116358,1.11021,1801.6,1801.5,1.11023]
[1743676116651,1.11029,1801.5,1801.4,1.11029]
[1743676116846,1.11026,1801.6,1801.4,2.60989]
[1743676117060,3.2078,1801.5,1800.9,11.87814274]
[1743676117254,1.11058,1801.0,1800.9,8.67034274]
[1743676117648,3.30048,1801.0,1800.9,8.67034274]
[1743676118044,11.76448,1801.0,1800.9,8.67034274]
[1743676118258,69.83991961,1801.0,1800.0,66.45194086]
[1743676118554,4.31893,1800.1,1800.0,52.32654086]
[1743676118754,8.61393,1800.1,1800.0,51.45554086]
[1743676118961,6.81893,1800.1,1800.0,51.45554086]
[1743676119258,4.393,1800.5,1800.0,51.45554086]
[1743676119454,3.2078,1800.6,1800.2,3.2078]
[1743676119755,0.00831531,1800.4,1800.1,18.19489356]
[1743676119956,0.00831531,1800.4,1800.3,1.11101]
[1743676120162,1e-08,1800.4,1800.3,1.11101]
[1743676120465,4.414,1801.1,1801.0,1.11058]
[1743676120657,9.1718,1801.4,1800.9,4.3184]
[1743676120847,1.11044,1801.3,1801.0,1.5349]
[1743676121049,14.69917,1801.4,1801.0,19.30545356]
[1743676121245,1.11042,1801.3,1801.1,16.65999356]
[1743676121450,1.11042,1801.3,1801.2,1.4758]
[1743676121655,2.77616,1801.2,1800.2,0.00831531]
[1743676121960,3.2078,1800.8,1800.3,18.13579356]
[1743676122158,1.11092,1800.5,1800.4,1.4758]
[1743676123455,1.11086,1800.6,1800.4,18.13579356]
[1743676123660,3.2078,1801.0,1800.6,1.11079]
[1743676123855,3.2078,1801.0,1800.8,1.11066]
[1743676124049,3.2078,1801.0,1800.9,1.4758]
[1743676124248,3.2078,1801.0,1800.9,2.58644]
[1743676124462,3.2078,1801.0,1800.9,18.13579356]
[1743676125158,4.31838,1801.0,1800.9,18.13579356]
[1743676126962,3.2078,1801.0,1800.9,18.13579356]
[1743676127160,4.31838,1801.0,1800.9,18.13579356]
[1743676127664,9.57067049,1801.0,1800.9,18.13579356]
[1743676128659,0.00831531,1801.4,1800.9,29.34323356]
[1743676128956,1.11019,1801.7,1801.4,1.11029]
[1743676129257,20.31733343,1801.8,1801.3,3.2078]
[1743676129258,17.10953343,1801.8,1801.5,4.6532]
[1743676129450,12.72053343,1801.8,1801.5,4.6532]
[1743676129658,12.72053343,1801.8,1801.6,1.74482794]
[1743676129960,12.72884874,1801.8,1801.7,2.55555]
[1743676130263,12.72884874,1801.8,1801.7,4.30037794]
[1743676130561,12.72884874,1801.8,1801.7,7.50817794]
[1743676131357,0.00831531,1801.8,1801.7,7.50817794]
[1743676131557,0.00831531,1801.8,1801.7,10.00817794]
[1743676132066,0.00831531,1801.8,1801.7,7.50817794]
[1743676132366,1.11839531,1801.8,1801.7,11.39802956]
[1743676132667,0.00831531,1801.8,1801.7,7.50817794]
[1743676133059,0.00831531,1801.8,1801.7,10.00817794]
[1743676133560,0.00831531,1801.8,1801.7,14.37717794]
[1743676133759,7.72884712,1801.9,1801.8,2.85490794]
[1743676135364,7.72884712,1801.9,1801.8,3.59350794]
[1743676135669,13.43664712,1801.9,1801.5,0.00831531]
[1743676135965,1.11021,1801.6,1801.5,0.00831531]
[1743676136263,5.48621,1801.6,1801.5,0.00831531]
[1743676136464,6.38051,1801.6,1801.5,0.00831531]
[1743676136767,6.38051,1801.6,1801.5,1.75314325]
[1743676136768,1.11021,1801.6,1801.5,1.75314325]
[1743676136967,5.48521,1801.6,1801.5,0.00831531]
[1743676137467,8.87951,1801.6,1801.5,0.00831531]
[1743676138964,13.7333,1801.6,1801.1,1.11047]
[1743676139168,17.21664,1801.6,1801.1,3.21322794]
[1743676139468,1.11039,1801.3,1801.2,2.85523794]
[1743676139864,1.11039,1801.3,1801.2,1.74482794]
[1743676140064,1.11039,1801.3,1801.2,2.85527794]
[1743676140373,1.11039,1801.3,1801.2,2.85526794]
[1743676140670,1.11045,1801.2,1801.1,2.58719531]
[1743676140863,1.11045,1801.2,1801.1,4.33202325]
[1743676141270,4.31825,1801.2,1801.1,0.00831531]
[1743676141468,3.2078,1801.2,1801.1,2.86366325]
[1743676141673,4.36,1801.3,1801.1,1.75314325]
[1743676141873,5.47039,1801.3,1801.2,1.4754]
[1743676142564,5.47039,1801.3,1801.1,0.00831531]
[1743676142565,1.11045,1801.2,1801.1,1.11883531]
[1743676142762,3.2078,1801.4,1801.2,2.85527794]
[1743676142967,1.11039,1801.3,1801.2,2.85527794]
[1743676143163,1.11039,1801.3,1801.2,1.11045]
[1743676143366,1.11039,1801.3,1801.2,1.74482794]
[1743676144265,1.11045,1801.2,1801.1,0.00831531]
[1743676144467,1.11045,1801.2,1801.1,1.75314325]
[1743676144866,3.2078,1801.4,1801.1,1.75314325]
[1743676145068,1.11041,1801.3,1801.2,1.74482794]
[1743676145468,1.11041,1801.3,1801.2,2.85527794]
[1743676145667,13.5428,1801.6,1801.2,1.74482794]
[1743676145873,1.11033,1801.4,1801.3,1.74482794]
[1743676147066,1.11033,1801.4,1801.3,2.85521794]
[1743676147676,1.11027,1801.5,1801.3,1.74482794]
[1743676147877,4.31804,1801.6,1801.5,1.11027]
[1743676148175,4.361,1801.7,1801.5,1.11027]
[1743676148176,1.11009,1801.8,1801.7,1.1101]
[1743676148370,4.31784,1801.9,1801.8,1.11008]
[1743676148567,4.31784,1801.9,1801.7,1.1101]
[1743676148768,4.31784,1801.9,1801.7,2.85494794]
[1743676149078,4.31782,1801.9,1801.8,1.74482794]
[1743676149274,4.31786,1801.9,1801.7,2.85497794]
[1743676149476,3.2078,1801.9,1801.8,1.11008]
[1743676149669,15.91656217,1801.9,1801.8,2.85490794]
[1743676149976,12.70876217,1801.9,1801.8,2.85490794]
[1743676150373,13.81878217,1801.9,1801.8,2.85490794]
[1743676150679,12.70876217,1801.9,1801.8,2.85490794]
[1743676150870,12.70876217,1801.9,1801.8,6.06270794]
[1743676151674,12.70876217,1801.9,1801.8,12.90270794]
[1743676152269,12.70876217,1801.9,1801.8,4.95262794]
[1743676152469,1.11015,1801.7,1801.6,5.05877]
[1743676152778,1.11014,1801.8,1801.7,1.11015]
[1743676152982,1.11014,1801.8,1801.7,2.85497794]
[1743676153672,1.11014,1801.8,1801.7,4.32267794]
[1743676154071,13.60326217,1801.9,1801.8,1.11008]
[1743676154272,12.70876217,1801.9,1801.8,2.85490794]
[1743676154480,13.81878217,1801.9,1801.8,1.74482794]
[1743676154671,13.81878217,1801.9,1801.8,2.85490794]
[1743676155176,13.81878217,1801.9,1801.8,1.74482794]
[1743676155369,13.81878217,1801.9,1801.8,2.85490794]
[1743676155880,12.70876217,1801.9,1801.8,2.85490794]
[1743676156675,13.81878217,1801.9,1801.8,1.74482794]
[1743676157067,1.11008,1801.8,1801.7,1.4677]
[1743676157269,14.71333217,1801.9,1801.8,2.85490794]
[1743676157469,13.81883217,1801.9,1801.8,2.85490794]
[1743676157666,1.11008,1801.8,1801.7,1.4677]
[1743676157879,1.11008,1801.8,1801.7,3.21252794]
[1743676158776,1.11008,1801.8,1801.7,4.32267794]
[1743676159081,13.81883217,1801.9,1801.8,1.11008]
[1743676159277,13.81883217,1801.9,1801.8,1.74482794]
[1743676159772,13.81883217,1801.9,1801.8,2.85490794]
[1743676159977,12.70876217,1801.9,1801.8,2.85490794]
[1743676160181,6.35911652,1801.9,1801.8,2.85490794]
[1743676161780,6.35911652,1801.9,1801.8,6.06270794]
[1743676162880,6.35911652,1801.9,1801.8,8.56270794]
[1743676163281,8.47882203,1801.9,1801.8,8.56270794]
[1743676163575,8.47882203,1801.9,1801.8,2.85490794]
[1743676163782,9.58884203,1801.9,1801.8,2.85490794]
[1743676163983,8.47882203,1801.9,1801.8,2.85490794]
[1743676165380,9.58884203,1801.9,1801.8,2.85490794]
[1743676165681,8.47882203,1801.9,1801.8,2.85490794]
[1743676167482,9.58884203,1801.9,1801.8,2.85490794]
[1743676167681,9.58884203,1801.9,1801.7,2.5778]
[1743676167682,1.11008,1801.8,1801.7,2.5778]
[1743676167984,1.11008,1801.8,1801.7,3.21252794]
[1743676168186,2.00488,1801.8,1801.7,3.21252794]
[1743676169880,2.00488,1801.8,1801.1,3.21611531]
[1743676169881,1.11031,1801.5,1801.1,3.21611531]
[1743676170088,4.31805,1801.6,1801.4,1.11028]
[1743676170378,1.11025,1801.6,1801.5,1.5211]
[1743676170584,6.87786,1801.8,1801.5,3.26592794]
[1743676170786,4.31801,1801.6,1801.5,1.5211]
[1743676171385,1.11021,1801.6,1801.5,3.26592794]
[1743676172480,1.11021,1801.6,1801.5,4.37619794]
[1743676172684,1.11019,1801.7,1801.6,1.11018]
[1743676172882,1.11021,1801.6,1801.5,2.63133]
[1743676173283,1.11021,1801.6,1801.5,3.26592794]
[1743676174686,1.11021,1801.6,1801.5,4.37619794]
[1743676175079,1.11021,1801.6,1801.5,1.5211]
[1743676175390,1.11021,1801.6,1801.5,3.26592794]
[1743676177489,1.11082,1800.6,1800.5,4.31865]
[1743676177680,1.11082,1800.6,1800.5,3.2078]
[1743676177981,1.11082,1800.6,1800.5,3.81773794]
[1743676178186,1.11082,1800.6,1800.5,2.02153794]
[1743676179378,1.11089,1800.5,1800.4,0.00831531]
[1743676179576,2.00739,1800.5,1800.4,0.61825325]
[1743676179780,5.55477,1800.4,1799.5,26.34443403]
[1743676179980,1.11142,1799.7,1799.6,1.4764]
[1743676180881,2.5,1799.7,1799.2,1.4559]
[1743676181181,1.11163,1799.3,1799.2,1.4559]
[1743676182585,1.11979531,1799.6,1799.2,3.9559]
[1743676182781,0.00831531,1799.6,1799.5,1.1115]
[1743676182981,0.00831531,1799.6,1799.5,6.9355]
[1743676183185,1.11111,1800.2,1799.6,2.77861]
[1743676183384,10.62447124,1799.9,1799.8,3.2078]
[1743676183593,0.02447124,1799.9,1799.8,4.3191]
[1743676184391,1e-08,1800.0,1799.9,1.11126]
[1743676184588,1e-08,1800.0,1799.9,6.51586]
[1743676184789,1e-08,1800.0,1799.9,9.01586]
[1743676185184,1e-08,1800.0,1799.9,14.83986]
[1743676185591,1e-08,1800.0,1799.9,15.39586]
[1743676186487,1e-08,1800.0,1799.9,14.83986]
[1743676187193,1.11119001,1800.0,1799.9,5.4046]
[1743676187391,1.11119001,1800.0,1799.9,2.1968]
[1743676188099,1.11119001,1800.0,1799.9,3.30806]
[1743676188302,1e-08,1800.0,1799.9,3.30806]
[1743676188498,1.11119001,1800.0,1799.9,3.30806]
[1743676188698,1e-08,1800.0,1799.9,3.30806]
[1743676189502,1.11119001,1800.0,1799.9,2.1968]
[1743676189999,1e-08,1800.0,1799.9,3.30806]
[1743676190494,1e-08,1800.0,1799.9,6.51586]
[1743676190902,1e-08,1800.0,1799.9,9.01586]
[1743676191599,1e-08,1800.0,1799.9,14.83986]
[1743676192200,1e-08,1800.0,1799.9,9.01586]
[1743676193600,1e-08,1800.0,1799.9,6.51586]
[1743676195799,1e-08,1800.0,1799.9,9.01586]
[1743676197210,1e-08,1800.0,1799.9,14.83986]
[1743676199913,2.60135145,1800.7,1800.6,1.11082]
[1743676200117,1.45e-06,1800.7,1800.6,4.31862]
[1743676200918,11.65552194,1801.1,1801.0,1.11058]
[1743676201226,8.44772194,1801.1,1801.0,1.11058]
[1743676201821,8.44772194,1801.1,1801.0,2.51348]
[1743676202324,7.29587194,1801.1,1801.0,2.51348]
[1743676203218,0.45578786,1801.1,1801.0,5.01348]
[1743676203417,3.17e-06,1801.2,1801.1,1.11052]
[1743676203622,3.17e-06,1801.2,1801.1,5.03002]
[1743676203824,12.70876217,1801.5,1801.4,1.11033]
[1743676203825,11.54624534,1801.5,1801.4,1.11033]
[1743676204130,3.76480534,1801.5,1801.4,4.31813]
[1743676204331,1.10976,1802.4,1802.1,1.1099]
[1743676204332,14.84062233,1802.2,1802.1,1.1099]
[1743676205122,14.84062233,1802.2,1802.0,1.11822531]
[1743676205629,14.84062233,1802.2,1802.1,1.1099]
[1743676206230,14.84062233,1802.2,1802.1,2.5279]
[1743676207822,0.00831531,1802.3,1802.1,2.5279]
[1743676208027,0.00831531,1802.3,1802.2,1.10984]
[1743676209125,0.00831531,1802.3,1802.2,2.50834]
[1743676211228,5.31e-06,1802.3,1802.2,5.00834]
[1743676211433,5.31e-06,1802.3,1802.2,2.50834]
[1743676211934,5.31e-06,1802.3,1802.2,3.2078]
[1743676211935,1.10980531,1802.3,1802.2,3.2078]
[1743676212225,5.31e-06,1802.3,1802.2,4.31764]
[1743676212430,5.31e-06,1802.3,1802.2,1.10984]
[1743676213131,1.10978531,1802.3,1802.2,1.10984]
[1743676213726,5.31e-06,1802.3,1802.2,1.10984]
[1743676213928,1.10979531,1802.3,1802.2,1.10984]
[1743676214431,1.10984,1802.2,1802.1,1.10985]
[1743676214632,1.4531,1802.2,1802.1,1.10985]
[1743676215729,5.31e-06,1802.3,1802.2,1.10984]
[1743676216123,5.31e-06,1802.3,1802.2,2.62764]
[1743676217330,1.10984,1802.2,1802.0,0.00831531]
[1743676217626,4.3177,1802.1,1802.0,0.00831531]
[1743676218033,1.4293,1802.2,1802.0,0.00831531]
[1743676218227,5.31e-06,1802.3,1802.0,1.52611531]
[1743676218433,5.31e-06,1802.3,1802.1,3.2078]
[1743676218729,1.1099,1802.1,1802.0,0.00831531]
[1743676218930,1.3992,1802.2,1802.0,1.11822531]
[1743676219131,2.50904,1802.2,1802.1,2.571]
[1743676219431,1.10983531,1802.3,1802.2,1.10984]
[1743676219634,1.10983531,1802.3,1802.2,2.57094]
[1743676220826,5.31e-06,1802.3,1802.2,2.57094]
[1743676221532,5.31e-06,1802.3,1802.2,5.77874]
[1743676222936,5.31e-06,1802.3,1802.2,8.27874]
[1743676223328,10.571929,1803.0,1802.2,13.5481]
[1743676223533,10.571929,1803.0,1802.9,4.31721]
[1743676223731,14.69122063,1803.3,1803.1,1.10924]
[1743676223933,11.57589261,1803.3,1803.1,3.2078]
[1743676224231,12.68508261,1803.3,1803.2,1.3873]
[1743676224430,14.36512091,1803.3,1803.2,1.3873]
[1743676225335,13.25596091,1803.3,1803.2,1.3873]
[1743676225535,15.21456131,1803.3,1803.2,2.49652]
[1743676225938,15.77853945,1803.3,1803.2,2.49652]
[1743676226133,16.05575965,1803.3,1803.2,2.1518]
[1743676226431,15.21369533,1803.3,1803.2,1.3873]
[1743676226629,16.32285533,1803.3,1803.2,1.3873]
[1743676226831,17.15715533,1803.3,1803.2,1.3873]
[1743676227224,1.10922,1803.2,1803.1,0.00831531]
[1743676227529,1.10941,1802.9,1802.8,1.4557]
[1743676227728,3.46134054,1802.9,1802.8,1.4557]
[1743676228031,6.26084185,1802.9,1802.8,1.4557]
[1743676228232,6.26084185,1802.9,1802.6,3.2078]
[1743676228233,1.10967,1802.5,1802.3,3.2078]
[1743676228531,1.10983,1802.3,1802.2,0.00831531]
[1743676228837,3.40612809,1802.3,1802.2,0.00831531]
[1743676229033,5.25754396,1802.3,1802.2,0.00831531]
[1743676229237,6.36732396,1802.3,1802.2,0.00831531]
[1743676229435,5.52562352,1802.3,1802.2,0.00831531]
[1743676230039,5.52562352,1802.3,1802.2,1.52071531]
[1743676230237,6.20107008,1802.3,1802.2,1.52071531]
[1743676230941,4.25699008,1802.3,1802.2,1.52071531]
[1743676231139,5.36677008,1802.3,1802.2,1.52071531]
[1743676231540,4.69258537,1802.3,1802.2,1.52071531]
[1743676231741,5.36677008,1802.3,1802.2,1.52071531]
[1743676232145,5.36827642,1802.3,1802.2,1.52071531]
[1743676232346,7.90128721,1802.3,1802.2,1.52071531]
[1743676232538,7.90129783,1802.3,1802.2,1.52071531]
[1743676232844,8.73459783,1802.3,1802.2,1.52071531]
[1743676233238,8.45716327,1802.3,1802.2,1.52071531]
[1743676234337,8.45716327,1802.3,1802.0,0.6523]
[1743676234338,1.1099,1802.1,1802.0,0.6523]
[1743676234537,5.66538287,1802.1,1802.0,0.6523]
[1743676234743,1.11015,1801.7,1801.6,1.11017]
[1743676234941,1.11021,1801.6,1801.5,2.54945]
[1743676235138,2.45789287,1801.6,1801.5,1.4392]
[1743676235339,1.11039,1801.3,1801.2,1.1104]
[1743676235537,2.45807287,1801.3,1801.2,1.1104]
[1743676235836,2.45807287,1801.3,1801.2,1.11045]
[1743676236037,1.11045,1801.2,1801.1,0.74631531]
[1743676236240,1.24601332,1801.2,1801.1,1.85683531]
[1743676236548,1.24601332,1801.2,1801.1,0.74631531]
[1743676236842,4.31506372,1801.2,1801.1,0.74631531]
[1743676237042,3.20461372,1801.2,1801.1,1.85683531]
[1743676237243,3.20461372,1801.2,1801.1,5.06463531]
[1743676238241,2.85766802,1801.2,1801.1,7.56463531]
[1743676238442,0.8439872,1801.5,1801.4,1.11033]
[1743676238740,0.3468803,1801.5,1801.4,4.31813]
[1743676238936,0.0468803,1801.5,1801.4,4.31813]
[1743676239143,1.11027,1801.5,1801.4,3.2078]
[1743676239342,1.11024,1801.6,1801.4,3.2078]
[1743676239644,1.11855531,1801.6,1801.5,1.11027]
[1743676239836,0.00831531,1801.6,1801.5,1.11027]
[1743676240435,0.00831531,1801.6,1801.5,3.61027]
[1743676241647,0.00831531,1801.6,1801.5,5.74987]
[1743676241947,1.10998,1802.0,1801.8,1.11004]
[1743676242147,5.4696872,1802.2,1801.9,2.50942]
[1743676242335,1.10996,1802.0,1801.9,1.3994]
[1743676242847,5.73558,1802.2,1801.9,2.50941]
[1743676243043,0.00831531,1802.1,1801.9,2.50941]
[1743676243250,0.00831531,1802.1,1802.0,1.10996]
[1743676243444,0.00831531,1802.1,1802.0,2.65096]
[1743676243645,0.00831531,1802.1,1802.0,3.40916]
[1743676246352,0.00831531,1802.1,1802.0,1.541]
[1743676246647,1.11821531,1802.1,1802.0,1.541]
[1743676246842,1.11821531,1802.1,1802.0,1.10996]
[1743676247052,1.77083336,1802.1,1802.0,1.10996]
[1743676247243,0.35510296,1802.1,1802.0,1.10996]
[1743676247444,0.00831531,1802.1,1802.0,1.10996]
[1743676248148,1.10997,1802.0,1801.9,1.10998]
[1743676248344,3.70922317,1802.0,1801.9,1.10998]
[1743676248544,1.11012,1801.8,1801.7,1.11012]
[1743676248743,2.29367317,1801.8,1801.7,1.11012]
[1743676248945,2.29367317,1801.8,1801.5,7.37528]
[1743676248946,1.11021,1801.6,1801.5,1.3918]
[1743676249146,5.23599161,1801.6,1801.3,4.31815]
[1743676249348,1.11033,1801.4,1801.3,1.11035]
[1743676249654,1.94706043,1801.4,1801.3,1.11035]
[1743676249847,3.94419769,1801.4,1801.1,0.00831531]
[1743676250047,1.11045,1801.2,1801.1,0.00831531]
[1743676250243,1.94718043,1801.2,1801.1,0.00831531]
[1743676250447,8.59862729,1801.2,1801.1,0.00831531]
[1743676250655,8.94545003,1801.2,1801.1,0.00831531]
[1743676250948,9.65325003,1801.2,1801.1,1.11883531]
[1743676251158,7.69877925,1801.2,1801.1,1.11883531]
[1743676251358,2.63285651,1801.2,1801.1,1.11883531]
[1743676251652,2.60146953,1801.2,1801.1,1.11883531]
[1743676251856,1.44916517,1801.2,1801.1,1.11883531]
[1743676252550,2.25450373,1801.2,1801.1,1.11883531]
[1743676253252,1.44916517,1801.2,1801.1,1.11883531]
[1743676253753,0.54678156,1801.2,1801.1,1.11883531]
[1743676255150,1.44916517,1801.2,1801.1,1.11883531]
[1743676255847,3.36502849,1801.2,1801.1,0.00831531]
[1743676256050,4.81232849,1801.2,1801.1,0.00831531]
[1743676256853,1.44916517,1801.2,1801.1,1.11883531]
[1743676258559,0.54678156,1801.2,1801.1,1.11883531]
[1743676259757,1.35403533,1801.2,1801.1,1.11883531]
[1743676260055,3.91585798,1801.2,1801.1,0.00831531]
[1743676260558,4.26298731,1801.2,1801.1,0.00831531]
[1743676260758,5.51243976,1801.2,1801.1,1.11883531]
[1743676260961,5.16531043,1801.2,1801.1,1.11883531]
[1743676261161,5.5124365,1801.2,1801.1,0.00831531]
[1743676261356,5.51248166,1801.2,1801.1,0.00831531]
[1743676261855,5.51248166,1801.2,1801.1,1e-08]
[1743676261856,8.01248166,1801.2,1801.1,1e-08]
[1743676262058,9.89305632,1801.2,1801.1,1e-08]
[1743676262256,15.85705632,1801.2,1801.1,1e-08]
[1743676262662,1.11095,1800.4,1800.3,2.53506]
[1743676262856,1.11105,1800.3,1800.1,1.11108]
[1743676263161,2.57115,1800.3,1800.2,1.11107]
[1743676263358,2.57115,1800.3,1800.1,1.4241]
[1743676263359,3.37693693,1800.3,1800.1,1.11113]
[1743676263667,1.91686088,1800.2,1800.0,1.11114]
[1743676263963,1.4601,1800.1,1800.0,1.11945531]
[1743676264166,1.44916517,1800.1,1800.0,1.11945531]
[1743676264961,0.54678156,1800.1,1800.0,1.11945531]
[1743676265163,0.54678156,1800.1,1800.0,4.32725531]
[1743676266963,0.90238361,1800.3,1800.2,1.11107]
[1743676267767,1.44754175,1800.3,1800.2,1.11107]
[1743676268066,2.55855175,1800.3,1800.1,1.4464]
[1743676268264,2.55855175,1800.3,1800.1,2.55753]
[1743676268265,1.4443,1800.2,1800.1,2.55753]
[1743676268667,1.44754175,1800.3,1800.2,1.11107]
[1743676268865,1.44754175,1800.3,1800.2,2.55747]
[1743676269067,1.44754175,1800.3,1800.2,5.05747]
[1743676269364,4.31812,1801.5,1801.3,1.11038]
[1743676269565,0.80387038,1801.4,1801.3,1.11039]
[1743676270063,1.11034,1801.4,1801.2,2.55681]
[1743676270272,0.80387038,1801.5,1801.4,1.11033]
[1743676270465,0.81218569,1801.5,1801.4,1.11033]
[1743676270658,0.00831531,1801.5,1801.4,3.61033]
[1743676270862,0.75078623,1802.0,1801.7,2.77531]
[1743676271060,21.20088905,1802.1,1802.0,1.10996]
[1743676271579,19.88087905,1802.1,1802.0,5.07856]
[1743676272169,19.88087905,1802.1,1802.0,2.57856]
[1743676272367,0.00831531,1802.2,1802.1,1.1099]
[1743676273670,0.00831531,1802.2,1801.7,3.2078]
[1743676273964,1.11008,1801.8,1801.5,1.11023]
[1743676274171,1.4454,1801.7,1801.6,1.11021]
[1743676275061,3.30576137,1801.7,1801.5,1.4673]
[1743676275271,1.86044211,1801.6,1801.1,3.21611531]
[1743676275465,1.4454,1801.5,1801.2,1.4673]
[1743676275769,2.55569,1801.5,1801.3,1.11034]
[1743676275966,2.55569,1801.5,1801.2,1.4673]
[1743676276164,0.75049648,1801.4,1801.3,1.11039]
[1743676276366,2.19859648,1801.4,1801.3,1.11039]
[1743676276869,2.19910521,1801.4,1801.3,1.11039]
[1743676278167,2.19910521,1801.4,1801.2,1.4673]
[1743676278369,0.75100521,1801.3,1801.1,1.11881531]
[1743676278573,5.76635,1801.2,1801.1,0.00831531]
[1743676278765,6.8644823,1801.2,1801.1,0.00831531]
[1743676278965,6.8644823,1801.2,1800.8,2.59538]
[1743676278966,11.0302023,1801.2,1800.8,1.11068]
[1743676279166,11.0302023,1801.2,1800.8,0.11106175]
[1743676279167,1.11064,1800.9,1800.8,0.11106175]
[1743676279369,1.86164521,1800.9,1800.8,0.11106175]
[1743676279675,2.99625861,1800.9,1800.8,1.22176175]
[1743676279867,1.55435861,1800.9,1800.8,1.22176175]
[1743676280062,0.8033534,1800.9,1800.8,1.22176175]
[1743676280274,0.8033534,1800.9,1800.8,2.72316175]
[1743676280669,0.00831531,1801.0,1800.9,1.11064]
[1743676281168,0.51053323,1801.0,1800.9,1.11064]
[1743676281975,0.51053323,1801.0,1800.9,4.31844]
[1743676282274,0.51053323,1801.0,1800.9,5.09674]
[1743676284668,0.50221792,1801.0,1800.9,7.59674]
[1743676284871,7.93e-06,1801.0,1800.9,7.59674]
[1743676285076,0.75267666,1801.5,1801.2,2.77604]
[1743676285276,0.75267666,1801.5,1801.4,4.31813]
[1743676285472,0.80428977,1801.6,1801.5,1.11027]
[1743676285779,0.80428977,1801.7,1801.6,1.11021]
[1743676286073,0.81260508,1801.7,1801.6,4.31801]
[1743676286277,0.00831531,1801.7,1801.6,4.31801]
[1743676286786,5.31e-06,1801.7,1801.6,6.81801]
[1743676287966,5.31e-06,1801.7,1801.6,12.64201]
[1743676288674,0.8219,1802.6,1802.5,1.10965]
[1743676288982,1.5282,1802.8,1802.7,1.10953]
[1743676289182,4.31718,1803.0,1802.8,1.10945]
[1743676289672,1.5282,1802.9,1802.8,1.10945]
[1743676290069,1.5282,1802.9,1802.7,0.00831531]
[1743676290278,2.63764,1802.9,1802.7,1.11783531]
[1743676290876,1.10947,1802.8,1802.7,1.11783531]
[1743676291086,1.5282,1802.8,1802.7,0.00831531]
[1743676291376,7.94617689,1802.8,1802.1,1.10987]
[1743676291582,3.2078,1802.4,1801.9,4.6626]
[1743676291886,3.2078,1802.4,1802.0,2.77481]
[1743676292090,1.10978,1802.3,1802.2,1.1098]
[1743676292281,1.10978,1802.3,1802.1,1.10986]
[1743676292585,1.10992,1802.1,1802.0,1.10993]
[1743676292786,1.10992,1802.1,1802.0,1.11824531]
[1743676292987,3.2078,1802.2,1802.1,1.1099]
[1743676293284,3.2078,1802.2,1802.0,0.00831531]
[1743676293682,3.2078,1802.2,1802.1,1.1099]
[1743676294483,4.31764,1802.2,1802.1,1.1099]
[1743676294788,3.2078,1802.2,1802.1,1.1099]
[1743676295484,1.1099,1802.1,1802.0,1.11823531]
[1743676295687,3.94616717,1802.2,1802.1,1.1099]
[1743676296078,4.65744961,1802.2,1802.1,1.1099]
[1743676296389,5.76728961,1802.2,1802.1,1.1099]
[1743676297086,6.22904338,1802.2,1802.1,1.1099]
[1743676297879,6.22904338,1802.2,1802.0,1.11825531]
[1743676298084,1.20012094,1802.2,1802.1,1.1099]
[1743676298288,1.20012094,1802.2,1802.1,2.5553]
[1743676298487,1.20012094,1802.3,1802.2,1.10984]